Cogmind - Beta 17.1 @@@ ROGUE MODE // 2026.08.29 @ 14:50:27 Player: Godsword Result: Self-destructed Performance ------------- Evolutions (7) 3500 Regions Visited (10) 2000 Robots Destroyed (9) 45 Value Destroyed (228) 228 Prototype IDs (1) 20 Alien Tech Used (0) 0 Bonus (1839) 1839 TOTAL SCORE: 7632 Bonus ------- Pacifist 364 Follower Combat Kills 475 Entered Garrisons 200 Registered with UFD 300 Met Optimus in HQ 500 Cogmind --------- Core Integrity 1166/1300 Matter 134/300 Energy 400/400 System Corruption 0% Temperature Cool (0) Movement Hovering (56) Location -3/Garrison Parts ------- > --- POWER (2) -------- Micro Antimatter Reactor Quantum Reactor > --- PROPULSION (5) --- Improved Gyrokinetic Inverter Improved Gyrokinetic Inverter Improved Gyrokinetic Inverter Improved Gyrokinetic Inverter Combat Antigrav System > --- UTILITY (12) ----- Power Amplifier Advanced Power Amplifier Advanced Cooling System Advanced Weight Redist. System Structural Scanner Improved Signal Interpreter Armor Integrity Analyzer Stasis Canceller Hardened Heavy Armor Plating Improved Medium Armor Plating Graphene Brace > --- WEAPON (2) ------- (None) > --- INVENTORY (5) ---- Improved Gyrokinetic Inverter Improved Gyrokinetic Inverter Improved Gyrokinetic Inverter Improved Sensor Array Bore Cannon Peak State ------------ > --- POWER ------------ Micro Antimatter Reactor Quantum Reactor > --- PROPULSION ------- Improved Gyrokinetic Inverter Improved Gyrokinetic Inverter Improved Gyrokinetic Inverter Improved Gyrokinetic Inverter Combat Antigrav System > --- UTILITY ---------- Power Amplifier Advanced Power Amplifier Advanced Heat Sink Advanced Heat Sink Advanced Weight Redist. System Structural Scanner Improved Sensor Array Improved Signal Interpreter Armor Integrity Analyzer Hardened Heavy Armor Plating Graphene Brace > --- WEAPON ----------- Heavy Riot Gun Bore Cannon > --- INVENTORY -------- Improved Gyrokinetic Inverter Improved Gyrokinetic Inverter Improved Gyrokinetic Inverter Stasis Canceller Improved Medium Armor Plating [Rating: 116] Favorites ----------- Power Light Ion Engine Engine Light Ion Engine Power Core Micro Nuclear Core Reactor Micro Antimatter Reactor Propulsion Hover Unit Hover Unit Hover Unit Flight Unit VTOL Module Utility Structural Scanner Device Structural Scanner Storage Medium Storage Unit Processor Advanced Visual Processing Unit Hackware System Shield Protection Hardened Heavy Armor Plating Weapon Mini Grenade Launcher Energy Gun Heavy Riot Gun Energy Cannon Cooled Plasma Cannon Ballistic Gun Subdweller Machine Gun Ballistic Cannon Bore Cannon Launcher Mini Grenade Launcher Special Weapon Mining Laser Impact Weapon Hammer Build | -11 -10 -10 -8 -6 -6 -6 -5 -4 -3 -3 ------- Run | Yrd Mat Sub Scr Fac Low Low Fac Fac Res Gar Slots Evolved 14 | . . . . 8 . . 2 2 2 . Power 1 | . . . . 1 . . . . . . Propulsion 3 | . . . . 3 . . . . . . Utility 10 | . . . . 4 . . 2 2 2 . Weapon . | . . . . . . . . . . . Parts Attached 61 | . 5 . 7 15 10 . 4 3 17 . Power 7 | . 1 . . 2 1 . . . 3 . Engine 3 | . 1 . . 1 . . . . 1 . Core 2 | . . . . 1 1 . . . . . Reactor 2 | . . . . . . . . . 2 . Propulsion 15 | . 1 . 1 2 5 . . . 6 . Treads . | . . . . . . . . . . . Leg . | . . . . . . . . . . . Wheel . | . . . . . . . . . . . Hover 9 | . 1 . . 2 . . . . 6 . Flight 6 | . . . 1 . 5 . . . . . Utility 31 | . 2 . 3 9 3 . 4 3 7 . Device 19 | . 1 . 1 6 2 . 2 2 5 . Storage 1 | . . . 1 . . . . . . . Processor 5 | . 1 . 1 1 . . 2 . . . Hackware 4 | . . . . 2 1 . . 1 . . Protection 2 | . . . . . . . . . 2 . Artifact . | . . . . . . . . . . . Weapon 8 | . 1 . 3 2 1 . . . 1 . Energy Gun 1 | . . . . . 1 . . . . . Energy Cannon 1 | . . . . 1 . . . . . . Ballistic Gun 1 | . . . 1 . . . . . . . Ballistic Cannon 1 | . . . . . . . . . 1 . Launcher 1 | . . . 1 . . . . . . . Special Weapon 1 | . 1 . . . . . . . . . Impact Weapon 2 | . . . 1 1 . . . . . . Slashing Weapon . | . . . . . . . . . . . Piercing Weapon . | . . . . . . . . . . . Special Melee Weapon . | . . . . . . . . . . . Unidentified Prototypes 1 | . . . . 1 . . . . . . Parts Lost 8 | . . . . 4 3 . . . 1 . Power 1 | . . . . 1 . . . . . . Propulsion 1 | . . . . . 1 . . . . . Utility 4 | . . . . 2 2 . . . . . Weapon 2 | . . . . 1 . . . . 1 . Highest Loss Streak 2 | . . . . 2 2 . . . 1 . To Critical Strikes . | . . . . . . . . . . . Average Backups 4 | . . 3 4 3 4 5 4 4 4 4 Power . | . . . . . . . . . . . Propulsion . | . . 1 . . . . . . 2 3 Utility 2 | . . 1 2 2 3 3 2 1 1 1 Weapon . | . . . . . 1 2 2 2 1 . Tool/Special . | . . . . . . . . . . . Unused Backups 23 | . . 1 12 2 3 . 1 . 1 3 Power 1 | . . . 1 . . . . . . . Propulsion 8 | . . . 5 . . . . . . 3 Utility 8 | . . 1 3 . 3 . 1 . . . Weapon 5 | . . . 3 2 . . . . . . Tool/Special 1 | . . . . . . . . . 1 . Average Slot Usage (%) 80 | . 32 71 83 63 88 86 83 91 92 86 Engine 9 | . 5 14 14 5 . . . . 1 . Core 2 | . . . . 3 12 13 11 10 4 . Hover 12 | . 5 14 14 12 1 . . . 18 23 Flight 7 | . . . 7 1 24 26 23 21 3 . Device 17 | . 11 14 10 17 34 26 24 31 33 34 Storage 2 | . . . 4 . . . . . . . Processor 6 | . 5 14 8 2 . . 5 10 9 9 Hackware 2 | . . . . 7 3 6 5 7 3 . Ballistic Gun 2 | . . . 5 . . . . . . . Launcher 6 | . . . 10 2 . . . . . . Special Weapon 2 | . 4 14 4 . . . . . . . Impact Weapon 4 | . . . 4 6 6 6 5 5 . . Peak Build Rating 116 | . 6 7 20 48 52 41 51 62 116 113 Average Rating 30 | . 2 6 13 33 43 41 46 58 96 108 On Entrance 35 | . . 6 7 19 48 41 41 51 62 112 Avg Prop Armor Cover (%) 3 | . . . 3 4 5 . . . . . Naked Turns 8 | . 8 . . . . . . . . . Heaviest Build 75 | . 5 5 18 33 28 22 23 25 73 75 Greatest Support 73 | 3 6 6 6 33 33 25 25 25 73 73 Greatest Overweight (x) 2 | . . . 2 2 1 . . . 1 1 Average Overweight (x) . | . . . . . . . . . . . Largest Inventory Capacity 10 | 5 5 5 10 5 5 5 5 5 5 5 Average Capacity 5 | 5 5 5 6 5 5 5 5 5 5 5 Most Carried 6 | . 1 5 6 5 5 5 5 5 5 5 Average Carried 4 | . . 3 4 3 4 5 4 4 4 4 Final Capacity 5 | 5 5 5 5 5 5 5 5 5 5 5 Final Carried 5 | . 1 5 5 5 5 5 5 5 4 5 Class Distribution -------------------- 61% | Mutant 10% | Scavenger-Sprinter 10% | Scavenger-Scout 6% | Derelict-Mutant 5% | Scavenger-Mutant 3% | Hacker-Mutant Dominant Class ---------------- Mutant | -10/Materials Mutant | -10/Subcaves Mutant | -8/Scraptown Derelict-Mutant | -6/Factory Scavenger-Sprinter | -6/Lower Caves Scavenger-Sprinter | -6/Lower Caves Scavenger-Sprinter | -5/Factory Scavenger-Scout | -4/Factory Scavenger-Scout | -3/Research Mutant | -3/Garrison Resources | -11 -10 -10 -8 -6 -6 -6 -5 -4 -3 -3 ----------- Run | Yrd Mat Sub Scr Fac Low Low Fac Fac Res Gar Matter Collected 1357 | 200 50 . 310 470 131 . . . 196 . Remotely . | . . . . . . . . . . . Salvage Created 984 | . . . . 183 670 . . . 131 . Parts 12 | . . . . 7 2 . . . 3 . Haulers Intercepted 1 | . . . . 1 . . . . . . Recyclers Shooed 1 | . . . . . . . . . 1 . Parts Field Recycled 22 | . . . . 22 . . . . . . Retrieved Matter 285 | . . . . 285 . . . . . . Parts Self-Destructed 14 | . . 9 . . 5 . . . . . Prevented . | . . . . . . . . . . . Parts Restored . | . . . . . . . . . . . Kills | -11 -10 -10 -8 -6 -6 -6 -5 -4 -3 -3 ------- Run | Yrd Mat Sub Scr Fac Low Low Fac Fac Res Gar Combat Hostiles Destroyed 4 | . . . . 1 3 . . . . . Melee 2 | . . . . . 2 . . . . . Classes Destroyed 7 | . . . . 4 2 . . . 1 . Builder 1 | . . . . 1 . . . . . . Hauler 1 | . . . . 1 . . . . . . Recycler 1 | . . . . . . . . . 1 . Mechanic 1 | . . . . 1 . . . . . . Watcher 1 | . . . . . . . . . 1 . Swarmer 3 | . . . . . 3 . . . . . Grunt 1 | . . . . 1 . . . . . . Packrat 1 | . . . . . 1 . . . . . Best Kill Streak 3 | . . . . 1 3 . . . 1 . Combat Bots Only 3 | . . . . 1 3 . . . . . Max Kills in Single Turn 1 | . . . . 1 1 . . . 1 . Gunslinging . | . . . . . . . . . . . Exploded . | . . . . . . . . . . . Melee 1 | . . . . . 1 . . . . . Uniques/NPCs Destroyed . | . . . . . . . . . . . Combat | -11 -10 -10 -8 -6 -6 -6 -5 -4 -3 -3 -------- Run | Yrd Mat Sub Scr Fac Low Low Fac Fac Res Gar Hostile Shots Fired 116 | . . 7 . 28 26 . . . 51 4 Missed 40 | . . 3 . 9 8 . . . 19 1 Hits 76 | . . 4 . 19 18 . . . 32 3 Projectile 76 | . . 4 . 19 18 . . . 32 3 AOE 2 | . . . . 2 . . . . . . Critical Strikes 4 | . . . . 1 1 . . . 2 . Actively Blocked 1 | . . . . . . . . . 1 . Damage Taken 1693 | . . 82 . 522 176 . . . 826 87 Core 385 | . . 40 . 185 26 . . . 104 30 Absorbed by Shields . | . . . . . . . . . . . Regen/Repaired (Parts) 50 | . . . 50 . . . . . . . Core Remaining (%) 91 | 100 . . 84 . . 75 100 100 . . Volleys Fired 19 | . 1 5 . 2 . . . . 11 . Largest 2 | . 1 1 . 1 . . . . 2 . Hottest 108 | . 100 100 . 105 . . . . 108 . Shots Fired 21 | . 1 5 . 2 . . . . 13 . Gun 2 | . . . . . . . . . 2 . Cannon 13 | . . . . 2 . . . . 11 . Launcher . | . . . . . . . . . . . Special 6 | . 1 5 . . . . . . . . Kinetic 11 | . . . . . . . . . 11 . Thermal 8 | . 1 5 . 2 . . . . . . Explosive . | . . . . . . . . . . . Electromagnetic 2 | . . . . . . . . . 2 . Robot Hit Streak 2 | . . . . 1 . . . . 2 . Robot Miss Streak 4 | . 1 . . 1 . . . . 4 . Penetration Max . | . . . . . . . . . . . Secondary Targets . | . . . . . . . . . . . Shots Hit Robots 39 | . . . . 17 18 . . . 4 . Core Hits 10 | . . . . 3 4 . . . 3 . Critical Kills 2 | . . . . . 1 . . . 1 . Critical Parts Destroyed 4 | . . . . 2 1 . . . 1 . Critical Strikes 6 | . . . . 2 2 . . . 2 . Destroy 1 | . . . . . . . . . 1 . Smash 5 | . . . . 2 2 . . . 1 . Melee Attacks 49 | . . . . 18 25 . 2 . 4 . Impact 49 | . . . . 18 25 . 2 . 4 . Slashing . | . . . . . . . . . . . Piercing . | . . . . . . . . . . . Sneak Attacks 4 | . . . . 2 2 . . . . . Combat Hostiles 1 | . . . . . 1 . . . . . Follow-up Attacks . | . . . . . . . . . . . Damage Inflicted 1864 | . . . . 452 1327 . . . 85 . Guns 30 | . . . . . . . . . 30 . Cannons 53 | . . . . 31 . . . . 22 . Explosions . | . . . . . . . . . . . Melee 1781 | . . . . 421 1327 . . . 33 . Ramming . | . . . . . . . . . . . Kinetic 22 | . . . . . . . . . 22 . Thermal 31 | . . . . 31 . . . . . . Explosive . | . . . . . . . . . . . Electromagnetic 30 | . . . . . . . . . 30 . Impact 1781 | . . . . 421 1327 . . . 33 . Slashing . | . . . . . . . . . . . Piercing . | . . . . . . . . . . . Highest Corruption 4 | . . . . 4 4 4 . . . . Average Corruption 4 | . . . . 4 4 4 . . . . Corruption Purged . | . . . . . . . . . . . Corruption Blocked . | . . . . . . . . . . . Effects 17 | . . . . 2 15 . . . . . Message Errors 7 | . . . . 1 6 . . . . . Matter Fused 4 | . . . . . 4 . . . . . Heat Flow Errors 2 | . . . . . 2 . . . . . Energy Discharges 1 | . . . . . 1 . . . . . Data Loss (minor) 3 | . . . . 1 2 . . . . . Overload Shots 1 | . . . . 1 . . . . . . Overflow Damage 874 | . . . . 96 745 . . . 33 . Projectiles . | . . . . . . . . . . . Explosions . | . . . . . . . . . . . Melee 874 | . . . . 96 745 . . . 33 . Knockbacks 5 | . . . . 4 . . . . 1 . Impact 4 | . . . . 4 . . . . . . Kinetic 1 | . . . . . . . . . 1 . Secondary . | . . . . . . . . . . . Self-Inflicted Damage . | . . . . . . . . . . . Shots . | . . . . . . . . . . . Rammed . | . . . . . . . . . . . Targets Rammed . | . . . . . . . . . . . Kicked . | . . . . . . . . . . . Crushed . | . . . . . . . . . . . Highest Temperature 264 | . 24 . . 62 264 . . . 60 5 Average Temperature 48 | . 13 . . 36 122 . . . 9 3 Received Heat Transfer 366 | . . 24 . 177 . . . . 147 18 Effects 2 | . . . . . 2 . . . . . Interference 2 | . . . . . 2 . . . . . Siege Activations . | . . . . . . . . . . . Martial Activations . | . . . . . . . . . . . Shielding Activations . | . . . . . . . . . . . Robots Disrupted . | . . . . . . . . . . . Combat Hostiles . | . . . . . . . . . . . Robots Corrupted 7 | . . . . 2 4 . . . 1 . Combat Hostiles 2 | . . . . 1 1 . . . . . Parts Fried 5 | . . . . . 4 . . . 1 . Impact Corruptions 30 | . . . . 4 25 . . . 1 . Robots Melted . | . . . . . . . . . . . Combat Hostiles . | . . . . . . . . . . . Parts Melted . | . . . . . . . . . . . Heat Transferred 50 | . . . . 50 . . . . . . Parts Sabotaged . | . . . . . . . . . . . Parts Stolen . | . . . . . . . . . . . Parts Stripped . | . . . . . . . . . . . Power Chain Reactions . | . . . . . . . . . . . Alert | -11 -10 -10 -8 -6 -6 -6 -5 -4 -3 -3 ------- Run | Yrd Mat Sub Scr Fac Low Low Fac Fac Res Gar Maximum Alert Level 1 | . . . . 1 . . . . . . Low Security (%) 99 | 100 100 . . 99 . . 100 100 100 100 Level 1 . | . . . . . . . . . . . Level 2 . | . . . . . . . . . . . Level 3 . | . . . . . . . . . . . Level 4 . | . . . . . . . . . . . Level 5 . | . . . . . . . . . . . High Security . | . . . . . . . . . . . Max Security . | . . . . . . . . . . . Peak Influence 218 | . 1 . . 218 . . 20 39 159 133 Initial 119 | . . . . . . . 20 . 20 119 Average 42 | . . . . 46 . . 9 7 40 124 Influence Increases 1066 | . 1 . . 425 192 . 17 43 374 14 Destroy 0b10 Robot/C 380 | . . . . 200 140 . . . 40 . Destroy 0b10 Robot/NC 25 | . . . . 15 . . . . 10 . Destroy Leader 84 | . . . . 62 20 . . . 2 . Allied During Kill 143 | . . . . 111 32 . . . . . Successful Hack 109 | . . . . 27 . . . 28 40 14 Disable Machine 15 | . . . . . . . 15 . . . Destroy Structure 25 | . 1 . . 10 . . 2 . 12 . Partial Spotted 30 | . . . . . . . . 15 15 . Lose Combat Pursuer 255 | . . . . . . . . . 255 . Influence Decreases 933 | . . 1 . 257 318 9 50 4 254 40 Entered New Map 145 | . . 1 . . 63 9 13 . 19 40 Time Decay 607 | . . . . 199 222 . 37 4 145 . Lost Part 70 | . . . . 30 30 . . . 10 . Lost Ally 111 | . . . . 28 3 . . . 80 . Squads Dispatched 15 | . 1 . . 10 . . . . 4 . Investigation 6 | . 1 . . 5 . . . . . . Extermination 4 | . . . . 2 . . . . 2 . Reinforcement 2 | . . . . . . . . . 2 . Assault . | . . . . . . . . . . . Garrison 3 | . . . . 3 . . . . . . Intercept . | . . . . . . . . . . . Searches Triggered . | . . . . . . . . . . . Construction Impeded . | . . . . . . . . . . . Haulers Reinforced . | . . . . . . . . . . . Active Scanning Responses . | . . . . . . . . . . . Cargo Convoy Interrupts . | . . . . . . . . . . . Stealth | -11 -10 -10 -8 -6 -6 -6 -5 -4 -3 -3 --------- Run | Yrd Mat Sub Scr Fac Low Low Fac Fac Res Gar Distress Signals 1 | . . . . . . . . . 1 . Communications Jammed . | . . . . . . . . . . . Distress Signals . | . . . . . . . . . . . Times Spotted 46 | . 3 4 . 10 8 . . . 18 3 Peak Tracking Total 9 | . 2 3 . 3 4 . . . 9 3 Tactical Retreats 6 | . . 1 . . . . . . 5 . Traps | -11 -10 -10 -8 -6 -6 -6 -5 -4 -3 -3 ------- Run | Yrd Mat Sub Scr Fac Low Low Fac Fac Res Gar Traps Triggered 1 | . . . . 1 . . . . . . Indirectly . | . . . . . . . . . . . Trap Hack Attempts . | . . . . . . . . . . . Triggered . | . . . . . . . . . . . Disarmed . | . . . . . . . . . . . Reprogrammed . | . . . . . . . . . . . Reused . | . . . . . . . . . . . Traps Extracted . | . . . . . . . . . . . Installed . | . . . . . . . . . . . Triggered . | . . . . . . . . . . . Machines | -11 -10 -10 -8 -6 -6 -6 -5 -4 -3 -3 ---------- Run | Yrd Mat Sub Scr Fac Low Low Fac Fac Res Gar Machines Disabled 2 | . . . . . 1 . 1 . . . Max in Single Turn 1 | . . . . . 1 . 1 . . . Machines Repaired . | . . . . . . . . . . . Machines Dismantled . | . . . . . . . . . . . Machines Sabotaged . | . . . . . . . . . . . Overloaded Fab Kills . | . . . . . . . . . . . Hacking | -11 -10 -10 -8 -6 -6 -6 -5 -4 -3 -3 --------- Run | Yrd Mat Sub Scr Fac Low Low Fac Fac Res Gar Machines Accessed 23 | . 1 . 7 6 1 . . 3 4 1 Terminals 6 | . . . . 3 . . . 2 . 1 Fabricators 2 | . . . . . . . . . 2 . Repair Stations 2 | . . . . 2 . . . . . . Recycling Units 1 | . 1 . . . . . . . . . Scanalyzers 1 | . . . . . . . . . 1 . Garrison Access 3 | . . . . 1 . . . 1 1 . Total Hacks 82 | . 2 . 50 15 1 . . 5 6 3 Successful 60 | . 1 . 50 2 1 . . 2 3 1 Failed 22 | . 1 . . 13 . . . 3 3 2 Catastrophic 6 | . . . . 6 . . . . . . Database Lockouts . | . . . . . . . . . . . Manual . | . . . . . . . . . . . Terminals 12 | . . . . 6 . . . 3 . 3 Fabricators 3 | . . . . . . . . . 3 . Repair Stations 7 | . . . . 7 . . . . . . Recycling Units 2 | . 2 . . . . . . . . . Scanalyzers 2 | . . . . . . . . . 2 . Garrison Access 5 | . . . . 2 . . . 2 1 . Terminal Hacks 56 | . . . 50 2 1 . . 2 . 1 Record 50 | . . . 50 . . . . . . . Part Schematic 1 | . . . . . . . . 1 . . Open Door 1 | . . . . . 1 . . . . . Open DSF 1 | . . . . . . . . 1 . . Emergency Access Points 1 | . . . . . . . . . . 1 Recall Investigation 2 | . . . . 2 . . . . . . Fabricator Hacks 1 | . . . . . . . . . 1 . Build 1 | . . . . . . . . . 1 . Repair Station Hacks . | . . . . . . . . . . . Recycling Unit Hacks 1 | . 1 . . . . . . . . . Retrieve Components 1 | . 1 . . . . . . . . . Scanalyzer 1 | . . . . . . . . . 1 . Retrieve Study 1 | . . . . . . . . . 1 . Garrison Access Hacks 1 | . . . . . . . . . 1 . Unlock Access 1 | . . . . . . . . . 1 . Unauthorized Hacks . | . . . . . . . . . . . Terminals . | . . . . . . . . . . . Fabricators . | . . . . . . . . . . . Repair Stations . | . . . . . . . . . . . Recycling Units . | . . . . . . . . . . . Scanalyzers . | . . . . . . . . . . . Garrison Access . | . . . . . . . . . . . Data Cores Recovered . | . . . . . . . . . . . Used . | . . . . . . . . . . . Hacking Detections 13 | . 1 . . 5 . . . 3 3 1 Full Trace Events 4 | . . . . 4 . . . . . . Feedback Events . | . . . . . . . . . . . Feedback Blocked 1 | . . . . 1 . . . . . . Robot Schematics Acquired . | . . . . . . . . . . . Robots Built 4 | . . . . . . . . . 4 . Authchips . | . . . . . . . . . . . Time 102 | . . . . . . . . . 102 . Total Robot Build Rating 32 | . . . . . . . . . 32 . Part Schematics Acquired 1 | . . . . . . . . 1 . . Parts Built . | . . . . . . . . . . . Authchips . | . . . . . . . . . . . Time . | . . . . . . . . . . . Total Part Build Rating . | . . . . . . . . . . . Part Studies Acquired 1 | . . . . . . . . . 1 . Parts Repaired . | . . . . . . . . . . . Time . | . . . . . . . . . . . Parts Recycled . | . . . . . . . . . . . Recycled Matter . | . . . . . . . . . . . Retrieved Matter . | . . . . . . . . . . . Retrieved Components 1 | . 1 . . . . . . . . . Parts Scanalyzed . | . . . . . . . . . . . Part Schematics Acquired . | . . . . . . . . . . . Parts Damaged . | . . . . . . . . . . . Bothacking | -11 -10 -10 -8 -6 -6 -6 -5 -4 -3 -3 ------------ Run | Yrd Mat Sub Scr Fac Low Low Fac Fac Res Gar Used RIF Installer . | . . . . . . . . . . . Robots Hacked . | . . . . . . . . . . . Non-combat . | . . . . . . . . . . . Combat . | . . . . . . . . . . . Robot Hacks Applied . | . . . . . . . . . . . Relay Couplers Released . | . . . . . . . . . . . Fabnet Peak Effective % . | . . . . . . . . . . . Robots Rewired . | . . . . . . . . . . . Allies Hacked 1 | . . . . 1 . . . . . . Hacks Repelled . | . . . . . . . . . . . Allies | -11 -10 -10 -8 -6 -6 -6 -5 -4 -3 -3 -------- Run | Yrd Mat Sub Scr Fac Low Low Fac Fac Res Gar Total Allies 10 | . . . 1 5 . . . . 4 . Largest Group 6 | . . . 1 6 4 . . . 4 . Highest-Rated Group 276 | . . . 47 276 188 . . . 120 . Highest-Rated Ally 47 | . . . 47 47 47 . . . 30 . Initial UFD Resources 32 | . . . . 23 23 23 26 29 32 32 Total Orders 1 | . . . . 1 . . . . . . AID 1 | . . . . 1 . . . . . . Ally Attacks 125 | . . . . 66 29 . . . 30 . Total Damage 2502 | . . . . 1188 845 . . . 469 . Kills 17 | . . . . 9 6 . . . 2 . Allies Corrupted . | . . . . . . . . . . . Allies Melted 1 | . . . . . 1 . . . . . Intel | -11 -10 -10 -8 -6 -6 -6 -5 -4 -3 -3 ------- Run | Yrd Mat Sub Scr Fac Low Low Fac Fac Res Gar Active Infowar (turns) 3299 | . 83 282 1550 179 515 8 85 55 531 11 Optics 1868 | . 37 282 1549 . . . . . . . Sensors 620 | . . . . . . . 26 55 531 8 Structural 2522 | . 83 282 773 179 515 8 85 55 531 11 Cloaking 215 | . . . . . 215 . . . . . Robot Analysis Total . | . . . . . . . . . . . Derelict Logs Recovered 6 | . . 2 3 . 1 . . . . . Drone Launches . | . . . . . . . . . . . Drone Recoveries . | . . . . . . . . . . . Exploration | -11 -10 -10 -8 -6 -6 -6 -5 -4 -3 -3 ------------- Run | Yrd Mat Sub Scr Fac Low Low Fac Fac Res Gar Turns Passed 5194 | 11 91 282 2724 812 515 8 85 55 531 80 Spaces Moved 6026 | 21 125 355 2267 577 1201 28 278 182 858 134 Core 92 | 21 71 . . . . . . . . . Treads . | . . . . . . . . . . . Legs . | . . . . . . . . . . . Wheels . | . . . . . . . . . . . Hover 4006 | . 54 355 2267 577 41 . . . 578 134 Flight 1928 | . . . . . 1160 28 278 182 280 . Fastest Speed 26 | 50 50 60 60 52 26 26 26 26 26 56 Average Speed 72 | 50 54 60 113 100 27 26 26 26 46 56 Slowest Speed 180 | 50 60 60 180 180 109 26 26 26 110 102 Overloaded Moves . | . . . . . . . . . . . Propulsion Burnouts . | . . . . . . . . . . . Robots Hopped . | . . . . . . . . . . . Potential Cave-ins 2 | . . . . . 2 . . . . . Cave-ins Triggered . | . . . . . . . . . . . Exploration Rate (%) 26 | 3 20 19 91 12 96 6 6 6 18 18 Regions Visited 10 Branch Regions 4 Pre-discovered Areas 2 | . . 2 . . . . . . . . Known Exits Taken 4 | . . . . . . 1 1 1 1 . Unknown Exits Taken 6 | 1 1 1 1 1 1 . . . . . Scrap Searched 12 | . . . 9 . 3 . . . . . Spaces Dug 8 | . . . . 1 4 . 1 . 2 . Terrain Destroyed 16 | . 1 . . 2 4 . 1 . 8 . Melee 7 | . . . . 1 4 . 1 . 1 . Projectile 9 | . 1 . . 1 . . . . 7 . AOE . | . . . . . . . . . . . Terrain Rammed . | . . . . . . . . . . . Walls Destroyed . | . . . . . . . . . . . Machines Disabled . | . . . . . . . . . . . Actions | -11 -10 -10 -8 -6 -6 -6 -5 -4 -3 -3 --------- Run | Yrd Mat Sub Scr Fac Low Low Fac Fac Res Gar Total 6752 | 20 142 409 2427 776 1364 27 287 188 974 138 Wait 475 | . 11 44 106 146 107 . . . 61 . Move 6016 | 20 124 354 2266 576 1200 27 277 181 857 134 Hop . | . . . . . . . . . . . Pick Up 47 | . 1 5 20 6 7 . 2 1 5 . Fast Attach 43 | . 5 . 3 12 7 . 3 2 11 . Attach 16 | . . . 2 7 1 . 1 1 3 1 Detach 3 | . . . . 1 . . . . . 2 Swap 13 | . . . 3 1 2 . . 1 5 1 Drop 61 | . . 1 22 7 10 . 2 2 17 . Fire 19 | . 1 5 . 2 . . . . 11 . Melee 49 | . . . . 18 25 . 2 . 4 . Ram . | . . . . . . . . . . . Kick . | . . . . . . . . . . . Crush . | . . . . . . . . . . . Escape Stasis . | . . . . . . . . . . . Rewire 10 | . . . 5 . 5 . . . . . Trap . | . . . . . . . . . . . Miscellaneous . | . . . . . . . . . . . Route ------- -11/Scrapyard -10/Materials (discovered 2 exits: [*Min] / [*Sub]) -10/Subcaves (discovered 2 exits: [*Rec] / *Scr) -8/Scraptown (discovered 2 exits: *Fac x2) -6/Factory (discovered 2 exits: Fac / *Low) -6/Lower Caves -6/Lower Caves -5/Factory (discovered 2 exits: *Fac / Upp) -4/Factory (discovered 3 exits: *Res / [*Upp] / DSF) -3/Research -3/Garrison History --------- Turn | Location | Event 3 | -11/Scrapyard | Discovered new exit (range 15) 12 | -11/Scrapyard | Entered Materials 13 | -10/Materials | Met a group of wandering Federalists 31 | -10/Materials | Discovered new exit (range 8) 71 | -10/Materials | Discovered new exit (range 7) 103 | -10/Materials | Entered Subcaves 104 | -10/Subcaves | Continued accompanying wandering Federalists (6) 105 | -10/Subcaves | Learned location of Zion (-6) 109 | -10/Subcaves | Learned location of Recycling (-8) 139 | -10/Subcaves | Shifting Twisted Machinery released Sub. Monowheel 188 | -10/Subcaves | Visited 4L-MR0's lab 313 | -10/Subcaves | Build established: Mutant 384 | -10/Subcaves | Discovered new exit (range 8) 385 | -10/Subcaves | Entered Scraptown 471 | -8/Scraptown | Visited UFD Registry 471 | -8/Scraptown | Registered with UFD as "Gravshaft" 475 | -8/Scraptown | Visited The Evicted 481 | -8/Scraptown | Visited Cyclists 488 | -8/Scraptown | Visited IN-MT5's Study 498 | -8/Scraptown | Visited Cave Peace 513 | -8/Scraptown | Scanned Subdweller tech in exchange for log data 515 | -8/Scraptown | Learned location of 2 exits from Proximity Caves 515 | -8/Scraptown | Learned Research trap positions 516 | -8/Scraptown | Learned location of 1 exit from Factory 523 | -8/Scraptown | Discovered new exit (range 11) 606 | -8/Scraptown | Heard Great Nut preacher, LISTEN AND RECITE! 701 | -8/Scraptown | Visited Bundlers 745 | -8/Scraptown | Visited Awakened 780 | -8/Scraptown | Visited CR-KLE's Repair Center 784 | -8/Scraptown | CR-KLE repaired 2 parts 850 | -8/Scraptown | Entered Cyclist Reading Room 902 | -8/Scraptown | Visited Observation Area 930 | -8/Scraptown | Visited Science Guys 952 | -8/Scraptown | Visited Research Penetration Think Tank 971 | -8/Scraptown | Visited DA-N13 Charitable Foundation 977 | -8/Scraptown | Found DCF Scrap (30 items) 1004 | -8/Scraptown | Visited Derelict Rescue Squad 1023 | -8/Scraptown | Visited Scrapoid Pod Storage 1034 | -8/Scraptown | Visited Curators Association 1046 | -8/Scraptown | Visited Botcube Research 1056 | -8/Scraptown | Visited Science Testing Area 1066 | -8/Scraptown | Visited Abandonware Association 1070 | -8/Scraptown | Learned abandonware demo "OVRCLOCK.EXE" 1074 | -8/Scraptown | Learned abandonware demo "REBOOT5.EXE" 1074 | -8/Scraptown | Learned abandonware demo "TRNCOAT.EXE" 1298 | -8/Scraptown | Found Botcube 1517 | -8/Scraptown | Botcube activated 1535 | -8/Scraptown | Botcube completed mutation into legged form, armed with 2 guns 1625 | -8/Scraptown | Found DRS Beacon 1737 | -8/Scraptown | Found Scrapoid Pod 3009 | -8/Scraptown | Met Optimus 3009 | -8/Scraptown | Accepted into 0bPrime 3100 | -8/Scraptown | Discovered new exit (range 3) 3109 | -8/Scraptown | Entered Factory 3109 | -6/Factory | Accompanied by 1 ally 3109 | -6/Factory | Evolved 8 slots: Power x1, Propulsion x3, Utility x4 3110 | -6/Factory | Identified exit to Factory 3552 | -6/Factory | Scrapoid Pod released 06F05-D (x5) 3618 | -6/Factory | Build established: Derelict-Mutant 3843 | -6/Factory | Discovered new exit (range 12) 3921 | -6/Factory | Entered Lower Caves 3921 | -6/Lower Caves | Accompanied by 4 allies 4041 | -6/Lower Caves | Attacked by a delusional Derelict stockpiling parts 4128 | -6/Lower Caves | Spotted B-75 Beast 4139 | -6/Lower Caves | Encountered a Warlord checkpoint 4216 | -6/Lower Caves | Build established: Scavenger-Sprinter 4369 | -6/Lower Caves | Learned 4 Factory zone layouts 4422 | -6/Lower Caves | Discovered new exit (range 10) 4436 | -6/Lower Caves | Entered another Lower Caves area 4438 | -6/Lower Caves | Discovered exit to Factory (range 14) 4444 | -6/Lower Caves | Entered Factory 4444 | -5/Factory | Evolved 2 slots: Utility x2 4445 | -5/Factory | Identified exit to Upper Caves 4512 | -5/Factory | Discovered new exit (range 13) 4517 | -5/Factory | Identified exit to Factory 4529 | -5/Factory | Entered another Factory area 4529 | -4/Factory | Evolved 2 slots: Utility x2 4547 | -4/Factory | Identified exit to DSF 4582 | -4/Factory | Discovered new exit (range 5) 4583 | -4/Factory | Discovered new exit (range 16) 4583 | -4/Factory | Identified exit to Research 4584 | -4/Factory | Entered Research 4584 | -3/Research | Evolved 2 slots: Utility x2 4585 | -3/Research | Loaded intel: 71 trap records 4715 | -3/Research | Fabricated S-43 Plague? 4841 | -3/Research | Build established: Scavenger-Scout 5063 | -3/Research | Spotted B-86 Titan 5105 | -3/Research | Identified exit to Garrison 5115 | -3/Research | Entered Garrison 5165 | -3/Garrison | Spotted B-86 Titan 5191 | -3/Garrison | Triggered checkpoint 5195 | -3/Garrison | Self-destructed Last Messages --------------- detected, Programmers report to Research Zone 2U. 05069_ Ion Accelerator explodes. 05076_ Slug penetrates Repair Station. 05087_ HV Slug penetrates Wall. 05105_ Connecting with Garrison Access... >>Unlock Access door unlocked. 05105_ EXIT=UNLOCKED: GARRISON 05106_ Dropped Adv. Heat Sink. LOCATION=GARRISON GOAL=ESCAPE 05166_ Connecting with Garrison Terminal... >>Access(Emergency) Found 63 emergency access points. Map updated. 05191_ Beams of light sweep through the air. An alarm sounds. 05191_ Penetrated by Slug. 05191_ Slug penetrates Wall. Map ----- +----------------------------------------------------+ | ????? +????????????????????????????????????????? | | ????# ?????????????????????????????????????????? | | ???## ?????????????????????????????????????????? | | ??? ?????????????????????????????????????????? | | ??? "????????????????????????????????????????? | | ?? "????????????????????????????????????????? | | ?? "????????????????????????????????????????? | | ?# #????????????????????????????????????????? | | ? ## #????????????????????????????????????????? | | ?? #????????????????????????????????????????? | | ??? +????????????????????????????????????????? | | ???? #????????????????????????????????????????? | | ????# #????????????????????????????????????????? | | ????# #????????????????????????????????????????? | | ????# ##???????????????????????????????????????? | | ????# T#???????????????????????????????????????? | | ????# ##???????????????????????????????????????? | | ????# #????????????????????????????????????????? | | ????# ###+#############+#################??????? | | ????# #??????? | | ????# #??????? | | ????# #??????? | | ????#######++############ ############ #??????? | | ????????????????????????# #??????????# #??????? | | ????????????????????????# #??????????#####??????? | | ??????????#++############@ #?????????????????????? | | ??????????# #?????????????????????? | | ??????????# #?????????????????????? | | ??????????## ##### ### #?????????????????????? | | ??????????#"""""???# Y #?# #?????????????????????? | | ??????????######???#####?# #?????????????????????? | | ?????????????????????????# #?????????????????????? | | ????????????????????????##p##????????????????????? | | ????????????????????????# p#????????????????????? | | ??????????????????????#?# #?#??????????????????? | | ????????????????????### # # ###????????????????? | | ????????????????????#"" + + ""#????????????????? | | ????????????????????#" # # "#????????????????? | | ????????????????????#" " " "#????????????????? | | ????????????????????#" " " "#????????????????? | | ????????????????????#" " " "#????????????????? | | ????????????????????## " " ##????????????????? | | ?????????????????????# "" "" #?????????????????? | | ?????????????????????# # # #?????????????????? | | ?????????????????????# + + #?????????????????? | | ?????????????????????#?#"""""#?#?????????????????? | | ???????????????????????#"""""#???????????????????? | | ???????????????????????#######???????????????????? | | ?????????????????????????????????????????????????? | | ?????????????????????????????????????????????????? | +----------------------------------------------------+ Best States ------------- Heat Dissipation 84 Energy Generation 56 Energy Capacity 400 Matter Stores 300 Matter Capacity 300 Sight Range 20 Robot Scan Range 15 Terrain Scan Density 10 Cloak Strength 3 Power Amplification 50 Additional Mass Support 9 Armor Coverage 825 Melee Speed Boost 40 Evasion (%) 64 Melee Accuracy 5 Armor Integrity Analysis 30 Offensive Hacking 10 Defensive Hacking 10 Item Schematics ----------------- Q-thruster | -4/Factory | Hacked Robot Schematics ------------------ None Fabricated ------------ S-43 Plague | x4 | -3/Research | Preloaded Repaired ---------- Nothing Studied --------- VTOL Module | -3/Research | Hacked Alien Tech Used ----------------- None Achievements -------------- None Challenges ------------ None Game ------ Seed PropulsionDeuteriumLog Manual? 0 Play Time 01:05:27 Cumulative 4.3 hours Start 2026.08.28 @ 16:46:21 End 2026.08.29 @ 14:50:27 Sessions 3 Manual Loads 0 Difficulty Rogue Special Mode None Game No. 15 Rogue 15 Adventurer 0 Explorer 0 Win Type - Total 0 Types 0/0/0/0/0/0/0/0/0/0 Lore% 8 Gallery% 13 Achievement% 41 Wizard Run 0 Options --------- Layout 2 ASCII 0 Keyboard 0 Movement Arrows Keybinds 0 Fullscreen 1 Font 16/SmallcapsGlow Map View 50x49 Zoom Use 0% Tactical HUD 1 Map Filters NONE Filters NONE Steam SD RUN: f0ad6929-22ed-4cde-ac92-80d3c4bc7343